[Event "1st Doppelbauer Kiel IM 2022"]
[Site "Kiel"]
[Date "2022.07.03"]
[Round "6.3"]
[White "Lanka, Zigurds"]
[Black "Kopylov, Daniel"]
[Result "1/2-1/2"]
[ECO "B23"]
[WhiteElo "2397"]
[BlackElo "2292"]
[Annotator "TA"]
[PlyCount "39"]
[EventDate "2022.06.30"]
[EventType "tourn"]
[EventCountry "GER"]
[SourceTitle "playchess.com"]
[Source "ChessBase"]
[SourceQuality "1"]
[TimeControl "40/5400+30:1800+30"]

{[%evp 9,39,16,37,19,22,20,20,-60,20,18,18,16,32,32,31,31,28,-6,0,-106,-98,-102,-106,-95,-70,-69,-35,-27,-21,-26,-37,-33]} 1. e4 {[%emt 0:05:20]} c5 {[%emt 0:00:12]} 2. Nc3 {[%emt 0:00:15]} Nc6 {[%emt 0:00:38]} 3. Bb5 {[%emt 0:00:17]} Nd4 {[%emt 0:00:51]} 4. Nf3 {[%emt 0:00:37]} a6 {[%emt 0:01:37]} 5. Bd3 {[%emt 0:00:54]} Nc6 {[%emt 0:02:48]} 6. Be2 {[%emt 0:00:59] B23: Closed Sicilian: Lines without g3.} e5 {[%emt 0:04:06]} 7. a4 {[%emt 0:00:27] [#]} Nf6 $146 {[%emt 0:00:45]} ({Predecessor:} 7... d6 8. Bc4 Be7 9. d3 Nf6 10. Ng5 O-O 11. f4 Bg4 12. Qd2 exf4 13. Qxf4 Nd4 {1-0 (103) Pridorozhni,A (2590)-Trent,L (2399) Chess.com INT 2020}) 8. Bc4 {[%emt 0:01:15] [#]} (8. O-O $11) 8... h6 {[%emt 0:00:35]} (8... Nxe4 $1 $15 9. Nxe4 d5 10. Bxd5 Qxd5) 9. d3 {[%emt 0:00:19]} Be7 {[%emt 0:02:51]} 10. Nd2 {[%emt 0:04:27]} O-O {[%emt 0:03:37]} 11. Nf1 {[%emt 0:00:34]} d6 {[%emt 0:03:48]} 12. Ne3 {[%emt 0:00:15]} Rb8 {[%emt 0:00:37]} 13. g4 {[%emt 0:01:23]} Nd4 {[%emt 0:04:52]} 14. Nf5 {[%emt 0:02:17] [#]} (14. a5 $1 $11) 14... b5 $1 $17 {[%emt 0:04:39]} (14... Nxg4 $2 15. Qxg4 Bxf5 16. exf5 $18) 15. axb5 {[%emt 0:08:31]} axb5 {[%emt 0:00:27]} 16. Ba2 {[%emt 0:00:19]} b4 {[%emt 0:07:23]} (16... Nxg4 $2 17. Qxg4 Bg5 18. h4 (18. Bxg5 Bxf5 19. exf5 Qxg5 $18) 18... Bxf5 19. exf5 $18) 17. Nd5 {[%emt 0:00:37]} Bxf5 {[%emt 0:01:41]} 18. gxf5 {[%emt 0:01:18]} Ra8 {[%emt 0:01:13] ...Nxd5 is the strong threat.} 19. Nxf6+ {[%emt 0:01:56]} Bxf6 {[%emt 0:00:32]} 20. Be3 {[%emt 0:05:35] Weighted Error Value: White=0.27 (precise) /Black=0.13 (very precise)} 1/2-1/2

[Event "1st Doppelbauer Kiel IM 2022"]
[Site "Kiel"]
[Date "2022.07.03"]
[Round "6.4"]
[White "Zavgorodniy, Sergiy"]
[Black "Fischer, Daniel"]
[Result "0-1"]
[ECO "C69"]
[WhiteElo "2423"]
[BlackElo "2367"]
[Annotator "TA"]
[PlyCount "64"]
[EventDate "2022.06.30"]
[EventType "tourn"]
[EventCountry "GER"]
[SourceTitle "playchess.com"]
[Source "ChessBase"]
[SourceQuality "1"]
[TimeControl "40/5400+30:1800+30"]

{[%evp 13,64,22,13,-90,-47,-43,0,1,38,0,21,27,35,29,47,14,7,14,12,0,0,0,0,0,16,0,0,0,0,0,0,0,0,0,0,0,0,0,0,-79,-70,-94,-72,-169,-143,-213,-175,-113,-96,-221,-203,-221,-178]} 1. e4 {[%emt 0:00:04]} e5 {[%emt 0:00:43]} 2. Nf3 {[%emt 0:00:19]} Nc6 {[%emt 0:00:06]} 3. Bb5 {[%emt 0:00:30]} a6 {[%emt 0:00:07]} 4. Bxc6 {[%emt 0:00:23]} dxc6 {[%emt 0:00:06]} 5. O-O {[%emt 0:00:14]} f6 {[%emt 0:00:13]} 6. d4 {[%emt 0:03:35]} exd4 $1 {[%emt 0:00:06] The main line 6...exd4 scores better than 6...Bg4.} 7. Nxd4 {[%emt 0:01:17]} c5 {[%emt 0:00:07]} 8. Nf5 {[%emt 0:03:45] C69: Ruy Lopez: Exchange Variation with 5 0-0 f6.} (8. Nb3 $11) 8... Qxd1 {[%emt 0:03:41]} 9. Rxd1 {[%emt 0:00:20]} Bd7 {[%emt 0:04:59]} (9... Bxf5 $5 10. exf5 Bd6 $15) 10. Bf4 {[%emt 0:01:09] The position is equal.} O-O-O {[%emt 0:01:05]} (10... Bxf5 $5 11. exf5 Bd6 12. Bxd6 O-O-O $11) 11. Nc3 {[%emt 0:00:09] [#]} g6 $146 {[%emt 0:22:05]} ({Predecessor:} 11... Bxf5 12. Rxd8+ Kxd8 13. exf5 Ne7 14. Rd1+ Kc8 15. g4 h5 16. h3 hxg4 17. hxg4 {½-½ (68) Ivanov,A (2420)-Bryzgalin,K (2450) Sochi 2015}) 12. Ne3 {[%emt 0:02:14] Pair of Knights!} Bh6 $1 {[%emt 0:01:05]} 13. Bxh6 {[%emt 0:04:06]} Nxh6 {[%emt 0:00:04]} 14. Ncd5 {[%emt 0:04:37]} Rhf8 {[%emt 0:02:13]} 15. Rd2 {[%emt 0:00:27] [#] Ne7+ is the strong threat.} Rde8 {[%emt 0:02:55] Inhibits Ne7+.} 16. Rad1 {[%emt 0:03:18][%cal Od5c7] Strongly threatening Nxc7!} Bc6 {[%emt 0:05:09]} 17. f3 {[%emt 0:01:38]} b6 {[%emt 0:01:00]} 18. Kf2 {[%emt 0:00:24]} Kb7 {[%emt 0:02:50]} 19. g4 {[%emt 0:09:02][%cal Bg2g4,Bg4g5][%mdl 32]} f5 {[%emt 0:10:10]} 20. exf5 {[%emt 0:14:51]} gxf5 {[%emt 0:00:12]} 21. g5 {[%emt 0:00:37]} f4 {[%emt 0:02:45]} 22. Ng4 {[%emt 0:01:52]} Nxg4+ {[%emt 0:10:41]} 23. fxg4 {[%emt 0:00:13]} Re5 {[%emt 0:00:22]} 24. h4 {[%emt 0:04:02]} Rfe8 $1 {[%emt 0:06:08][%cal Oe5e3]} 25. c4 {[%emt 0:06:17]} Re3 {[%emt 0:03:29]} 26. Rd3 {[%emt 0:09:04]} (26. Rh1 $11 {remains equal.}) 26... Re2+ $17 {[%emt 0:03:01]} 27. Kf3 {[%emt 0:01:07]} Rxb2 {[%emt 0:01:00] Hoping for ...Rc2. 0x0.0022fc6dcc03dp-1022s more active pieces.} 28. R3d2 {[%emt 0:04:48] Against Rc2} (28. R1d2 $17 {might work better.} Rb4 29. Rc3) 28... Rb4 $1 $19 {[%emt 0:01:29]} 29. Rc1 {[%emt 0:00:25] [#]} (29. Rc2 $17) 29... Re5 $1 {[%emt 0:00:57]} 30. Kf2 {[%emt 0:01:02]} Bxd5 {[%emt 0:01:40]} 31. Rxd5 {[%emt 0:01:19]} (31. cxd5 $17 Ra4 32. Rcd1) 31... Re3 {[%emt 0:02:03] ( -> ...Rb2+)} 32. Rd2 {[%emt 0:00:31] Prevents Rb2.} Rh3 {[%emt 0:00:59] Weighted Error Value: White=0.31/Black=0.06 (flawless)} 0-1

[Event "1st Doppelbauer Kiel IM 2022"]
[Site "Kiel"]
[Date "2022.07.03"]
[Round "6.5"]
[White "Junge, Ralph"]
[Black "Ermitsch, Magnus"]
[Result "0-1"]
[ECO "A03"]
[WhiteElo "2224"]
[BlackElo "2222"]
[Annotator "RC"]
[PlyCount "72"]
[EventDate "2022.06.30"]
[EventType "tourn"]
[EventCountry "GER"]
[SourceTitle "playchess.com"]
[Source "ChessBase"]
[SourceQuality "1"]
[TimeControl "40/5400+30:1800+30"]

1. f4 {[%emt 0:08:22]} d5 {[%emt 0:00:33]} 2. Nf3 {[%emt 0:00:11]} g6 {[%emt 0:02:08]} 3. g3 {[%emt 0:00:36]} Bg7 {[%emt 0:00:21]} 4. Bg2 {[%emt 0:00:07]} c6 {[%emt 0:00:13]} 5. d3 {[%emt 0:07:49]} Nf6 {[%emt 0:06:23]} 6. c3 {[%emt 0:09:14]} Qb6 {[%emt 0:04:08]} 7. e3 {[%emt 0:01:03]} Bf5 {[%emt 0:02:21]} 8. O-O {[%emt 0:02:03]} Nbd7 {[%emt 0:02:22]} 9. Nh4 {[%emt 0:19:33]} h5 {[%emt 0:05:00]} 10. Re1 {[%emt 0:05:45]} Nc5 {[%emt 0:06:16]} 11. Bf1 {[%emt 0:03:02]} a5 {[%emt 0:08:52]} 12. Na3 {[%emt 0:02:27]} Ng4 {[%emt 0:08:11]} 13. Nc2 {[%emt 0:04:21]} Bd7 {[%emt 0:02:30]} 14. h3 {[%emt 0:04:04]} Nh6 {[%emt 0:01:26]} 15. Kh2 {[%emt 0:01:57]} Nf5 {[%emt 0:02:15]} 16. Nxf5 {[%emt 0:00:26]} Bxf5 {[%emt 0:01:55]} 17. Nd4 {[%emt 0:01:34]} Bd7 {[%emt 0:02:03]} 18. Nf3 {[%emt 0:03:14]} f6 {[%emt 0:03:31]} 19. e4 {[%emt 0:02:49]} dxe4 {[%emt 0:03:38]} 20. dxe4 {[%emt 0:00:06]} O-O-O {[%emt 0:02:40]} 21. b4 {[%emt 0:08:30]} axb4 {[%emt 0:15:45]} 22. Be3 {[%emt 0:00:19]} Bg4 {[%emt 0:05:15]} 23. Qe2 {[%emt 0:01:15]} bxc3 {[%emt 0:02:50]} 24. hxg4 {[%emt 0:01:44]} hxg4+ {[%emt 0:01:37]} 25. Nh4 {[%emt 0:00:04]} Qb2 {[%emt 0:00:44]} 26. Rab1 {[%emt 0:05:07]} Qxe2+ {[%emt 0:00:59]} 27. Bxe2 {[%emt 0:00:36]} Nxe4 {[%emt 0:00:33]} 28. Bxg4+ {[%emt 0:02:02]} f5 {[%emt 0:01:13]} 29. Bf3 {[%emt 0:02:18]} Nd2 {[%emt 0:01:23]} 30. Bxd2 {[%emt 0:01:34]} Rxd2+ {[%emt 0:00:28]} 31. Re2 {[%emt 0:00:12]} Rhd8 {[%emt 0:01:01]} 32. Kh3 {[%emt 0:03:26]} Rxe2 {[%emt 0:01:01]} 33. Bxe2 {[%emt 0:00:00]} c2 {[%emt 0:00:29]} 34. Rc1 {[%emt 0:00:26]} Rd2 {[%emt 0:00:05]} 35. Bd3 {[%emt 0:00:45]} Rxd3 {[%emt 0:00:08]} 36. Rxc2 {[%emt 0:00:03]} Rd6 {[%emt 0:00:47]} 0-1

[Event "1st Doppelbauer Kiel IM 2022"]
[Site "Kiel"]
[Date "2022.07.03"]
[Round "7.1"]
[White "Ermitsch, Magnus"]
[Black "Beeck, Mats"]
[Result "1-0"]
[ECO "C90"]
[WhiteElo "2222"]
[BlackElo "2169"]
[Annotator "RC"]
[PlyCount "103"]
[EventDate "2022.06.30"]
[EventType "tourn"]
[EventCountry "GER"]
[SourceTitle "playchess.com"]
[Source "ChessBase"]
[SourceQuality "1"]
[TimeControl "40/5400+30:1800+30"]

1. e4 {[%emt 0:00:04]} e5 {[%emt 0:00:12]} 2. Nf3 {[%emt 0:00:05]} Nc6 {[%emt 0:00:25]} 3. Bb5 {[%emt 0:00:09]} a6 {[%emt 0:00:42]} 4. Ba4 {[%emt 0:00:05]} Nf6 {[%emt 0:00:05]} 5. O-O {[%emt 0:00:07]} Be7 {[%emt 0:01:02]} 6. d3 {[%emt 0:00:07]} b5 {[%emt 0:00:05]} 7. Bb3 {[%emt 0:00:05]} d6 {[%emt 0:00:05]} 8. c3 {[%emt 0:00:04]} O-O {[%emt 0:00:23]} 9. a4 {[%emt 0:00:38]} Bd7 {[%emt 0:00:35]} 10. Bc2 {[%emt 0:00:12]} Re8 {[%emt 0:00:53]} 11. Re1 {[%emt 0:00:17]} h6 {[%emt 0:00:24]} 12. Nbd2 {[%emt 0:00:26]} Bf8 {[%emt 0:00:15]} 13. h3 {[%emt 0:00:15]} Rb8 {[%emt 0:01:07]} 14. Nf1 {[%emt 0:03:26]} b4 {[%emt 0:01:14]} 15. d4 {[%emt 1:32:00]} bxc3 {[%emt 0:00:46]} 16. bxc3 {[%emt 0:00:00]} exd4 {[%emt 0:00:10]} 17. cxd4 {[%emt 0:00:00]} Nb4 {[%emt 0:00:15]} 18. Ng3 {[%emt 0:00:00]} Nxc2 {[%emt 0:00:16]} 19. Qxc2 {[%emt 0:00:00]} d5 {[%emt 0:00:10]} 20. e5 {[%emt 0:00:00]} Ne4 {[%emt 0:00:07]} 21. Nxe4 {[%emt 0:00:00]} dxe4 {[%emt 0:00:10]} 22. Qxe4 {[%emt 0:00:00]} Be6 {[%emt 0:00:12]} 23. Be3 {[%emt 0:00:00]} Bd5 {[%emt 0:01:56]} 24. Qg4 {[%emt 0:00:00]} Re6 {[%emt 0:01:43]} 25. Qf4 {[%emt 0:00:00]} Rb4 {[%emt 0:05:42]} 26. Rec1 {[%emt 0:00:00]} Qd7 {[%emt 0:20:15]} 27. Qf5 {[%emt 0:00:00]} a5 {[%emt 0:06:11]} 28. Ne1 {[%emt 0:00:00]} Rxa4 {[%emt 0:11:26]} 29. Nd3 {[%emt 0:00:00]} Rxa1 {[%emt 0:02:26]} 30. Rxa1 {[%emt 0:00:00]} Qb5 {[%emt 0:17:38]} 31. Nf4 {[%emt 0:00:00]} Re8 {[%emt 0:07:43]} 32. Nh5 {[%emt 0:00:00]} Re6 {[%emt 0:06:05]} 33. Nf4 {[%emt 0:00:00]} Re8 {[%emt 0:07:33]} 34. Qg4 {[%emt 0:00:00]} Ra8 {[%emt 0:01:54]} 35. Nh5 {[%emt 0:00:00]} Ra6 {[%emt 0:02:20]} 36. Nf6+ {[%emt 0:05:31]} Kh8 {[%emt 0:00:23]} 37. Bxh6 {[%emt 0:02:23]} Rxf6 {[%emt 0:00:49]} 38. Bxg7+ {[%emt 0:01:16]} Bxg7 {[%emt 0:00:15]} 39. Qc8+ {[%emt 0:01:06]} Kh7 {[%emt 0:00:10]} 40. exf6 {[%emt 0:01:11]} Bb7 {[%emt 0:04:25]} 41. Qg4 {[%emt 0:11:28]} Bxf6 {[%emt 0:00:26]} 42. Rc1 {[%emt 0:00:53]} Be7 {[%emt 0:04:46]} 43. f4 {[%emt 0:03:06]} Bd6 {[%emt 0:07:31]} 44. f5 {[%emt 0:02:37]} Qd3 {[%emt 0:06:25]} 45. Qh4+ {[%emt 0:02:50]} Kg8 {[%emt 0:00:21]} 46. Re1 {[%emt 0:04:16]} Qxf5 {[%emt 0:02:32]} 47. Re8+ {[%emt 0:01:11]} Bf8 {[%emt 0:00:11]} 48. Qe7 {[%emt 0:01:21]} Qd5 {[%emt 0:03:56]} 49. Qxf8+ {[%emt 0:00:50]} Kh7 {[%emt 0:00:06]} 50. Qg8+ {[%emt 0:01:21]} Kh6 {[%emt 0:00:05]} 51. Qg4 {[%emt 0:00:34]} Kh7 {[%emt 0:00:11]} 52. Re5 {[%emt 0:00:11]} 1-0

[Event "1st Doppelbauer Kiel IM 2022"]
[Site "Kiel"]
[Date "2022.07.03"]
[Round "7.2"]
[White "Fischer, Daniel"]
[Black "Junge, Ralph"]
[Result "1/2-1/2"]
[ECO "B35"]
[WhiteElo "2367"]
[BlackElo "2224"]
[Annotator "TA"]
[PlyCount "35"]
[EventDate "2022.06.30"]
[EventType "tourn"]
[EventCountry "GER"]
[SourceTitle "playchess.com"]
[Source "ChessBase"]
[SourceQuality "1"]
[TimeControl "40/5400+30:1800+30"]

{[%evp 21,35,31,44,32,18,14,47,-6,0,14,18,0,0,0,70,35]} 1. e4 {[%emt 0:00:03]} c5 {[%emt 0:01:05]} 2. Nf3 {[%emt 0:00:05]} g6 {[%emt 0:00:08]} 3. d4 {[%emt 0:00:26]} cxd4 {[%emt 0:00:12]} 4. Nxd4 {[%emt 0:00:06]} Bg7 {[%emt 0:00:29]} 5. Nc3 {[%emt 0:00:12]} Nc6 {[%emt 0:00:39]} 6. Be3 {[%emt 0:00:15]} Nf6 {[%emt 0:01:14]} 7. Bc4 {[%emt 0:00:24]} O-O {[%emt 0:00:59]} 8. Bb3 {[%emt 0:00:08]} a6 {[%emt 0:00:52]} 9. f3 {[%emt 0:04:31]} Qc7 {[%emt 0:00:09]} 10. Qd2 {[%emt 0:02:47]} b5 {[%emt 0:01:54]} 11. O-O-O {[%emt 0:12:28]} Bb7 {[%emt 0:00:14]} 12. g4 {[%emt 0:01:55] B35: Sicilian: Accelerated Dragon with 5 Nc3: main line.} Na5 {[%emt 0:13:32]} 13. Kb1 {[%emt 0:15:33]} Rfd8 {[%emt 0:08:47]} 14. Bh6 {[%emt 0:13:59]} (14. Qf2 $1 $14) 14... Nxb3 {[%emt 0:03:57] [#]} 15. axb3 $146 {[%emt 0:00:27] aiming for Bxg7.} ({Predecessor:} 15. cxb3 Bxh6 16. Qxh6 d5 17. e5 Qxe5 18. Rhe1 Qd6 19. Qg5 Kh8 20. a3 Re8 21. f4 {0-1 (36) Mohrlok,D-Bialas,W Bad Pyrmont 1963}) 15... Bh8 {[%emt 0:01:35] [#]} 16. Nf5 $1 {[%emt 0:02:00][%cal Rf5e7]} d5 $1 {[%emt 0:02:05][%cal Rd5e4]} 17. e5 {[%emt 0:11:57]} Ne8 {[%emt 0:02:03]} (17... Qxe5 $2 18. Rhe1 Qxf5 19. gxf5 $18) (17... Nxg4 $11 18. fxg4 d4) 18. Qg5 {[%emt 0:08:11] Weighted Error Value: White=0.21 (precise) /Black=0.18 (very precise)} (18. Bf4 $5 d4 19. Nh6+ (19. Nxd4 Bxf3 20. Rhf1 Bxd1 $17) 19... Kf8 20. Ne4 Bxe4 21. fxe4 Bxe5 22. Rdf1 $15) 1/2-1/2

[Event "1st Doppelbauer Kiel IM 2022"]
[Site "Kiel"]
[Date "2022.07.03"]
[Round "7.3"]
[White "Kopylov, Daniel"]
[Black "Zavgorodniy, Sergiy"]
[Result "1-0"]
[ECO "C41"]
[WhiteElo "2292"]
[BlackElo "2423"]
[Annotator "TA"]
[PlyCount "45"]
[EventDate "2022.06.30"]
[EventType "tourn"]
[EventCountry "GER"]
[SourceTitle "playchess.com"]
[Source "ChessBase"]
[SourceQuality "1"]
[TimeControl "40/5400+30:1800+30"]

{[%evp 11,45,28,37,29,61,39,36,32,45,46,91,84,94,94,102,83,139,151,142,145,126,129,343,380,544,550,525,545,542,537,706,693,682,671,622,612]} 1. e4 {[%emt 0:00:30]} e5 {[%emt 0:05:06]} 2. Nf3 {[%emt 0:00:00]} d6 {[%emt 0:00:06]} 3. d4 {[%emt 0:00:36]} exd4 {[%emt 0:00:07]} 4. Nxd4 {[%emt 0:00:06]} Nf6 {[%emt 0:00:05]} 5. Nc3 {[%emt 0:00:11]} Be7 {[%emt 0:00:06]} 6. g3 {[%emt 0:04:09][%cal Bg2g3,Bg3g4,Bg4g5][%mdl 32]} O-O {[%emt 0:00:40]} 7. Bg2 {[%emt 0:00:10] C41: Philidor Defence.} Bg4 {[%emt 0:06:32]} 8. f3 {[%emt 0:01:05]} Bd7 {[%emt 0:00:06]} 9. O-O {[%emt 0:00:22] White is slightly better.} c5 {[%emt 0:00:59]} 10. Nde2 {[%emt 0:03:12]} Bc6 {[%emt 0:01:12]} 11. g4 {[%emt 0:05:36]} b5 {[%emt 0:18:07] [#]} 12. g5 $146 {[%emt 0:05:28]} ({Predecessor:} 12. Ng3 b4 13. Nd5 Bxd5 14. exd5 Nfd7 15. Re1 Bh4 16. f4 Re8 {½-½ (16) Socko,B (2631)-Ghaem Maghami,E (2599) Beijing 2008}) 12... Nh5 {[%emt 0:01:13]} 13. f4 {[%emt 0:01:10]} Nd7 {[%emt 0:01:39] [#]} ({Black should play} 13... g6) 14. Bf3 $1 $16 {[%emt 0:04:14]} g6 {[%emt 0:03:29]} 15. Bxh5 {[%emt 0:00:59]} gxh5 {[%emt 0:00:03]} 16. Ng3 {[%emt 0:00:22][%cal Be2g3,Bg3f5,Bf5h6,Bh6f5][%mdl 32]} h4 {[%emt 0:03:29]} (16... f6 $16 {is a better defense.}) 17. Nf5 $1 $18 {[%emt 0:01:38][%csl LRd6,LRh4]} Re8 {[%emt 0:05:41]} (17... Nb6 $142 18. Qh5 Kh8) 18. Nh6+ {[%emt 0:07:29] White is clearly winning.} Kg7 {[%emt 0:00:07]} 19. Qh5 {[%emt 0:06:49][%csl LRf7,LRh4]} Rf8 {[%emt 0:00:03]} 20. b3 {[%emt 0:01:30]} ({Not} 20. Ng4 Qe8 21. f5 (21. Qxh4 b4 $18) 21... Kh8 22. Qxh4 Rg8 $18) 20... Qe8 {[%emt 0:00:31]} 21. Nf5+ {[%emt 0:01:04] Pair of Knights!} ({Weaker is} 21. Ng4 f6 22. Qxh4 (22. gxf6+ Bxf6 23. Nxf6 Nxf6 $17) 22... h5 $16) 21... Kh8 {[%emt 0:00:15]} 22. Bb2 {[%emt 0:00:23]} f6 {[%emt 0:00:06]} 23. g6 {[%emt 0:00:14] Black got outplayed after the opening.  Weighted Error Value: White=0.01 (flawless) /Black=0.35} 1-0

[Event "1st Doppelbauer Kiel IM 2022"]
[Site "Kiel"]
[Date "2022.07.03"]
[Round "7.4"]
[White "Barseghyan, Armen Ar."]
[Black "Lanka, Zigurds"]
[Result "1/2-1/2"]
[ECO "E97"]
[WhiteElo "2378"]
[BlackElo "2397"]
[Annotator "TA"]
[PlyCount "79"]
[EventDate "2022.06.30"]
[EventType "tourn"]
[EventCountry "GER"]
[SourceTitle "playchess.com"]
[Source "ChessBase"]
[SourceQuality "1"]
[TimeControl "40/5400+30:1800+30"]

{[%evp 20,79,21,21,21,20,22,29,22,31,27,16,18,20,21,21,30,30,50,41,38,35,79,47,106,60,60,57,62,55,56,56,54,25,26,28,22,25,43,41,43,46,49,46,53,44,50,0,53,53,64,64,72,37,52,51,57,0,39,0,33,0]} 1. d4 {[%emt 0:00:03]} Nf6 {[%emt 0:00:05]} 2. c4 {[%emt 0:00:04]} g6 {[%emt 0:00:06]} 3. Nc3 {[%emt 0:00:02]} Bg7 {[%emt 0:00:08]} 4. e4 {[%emt 0:00:14]} d6 {[%emt 0:00:13]} 5. Nf3 {[%emt 0:00:08]} O-O {[%emt 0:00:09]} 6. Be2 {[%emt 0:00:07]} e5 {[%emt 0:00:08]} 7. O-O {[%emt 0:00:10]} Nc6 {[%emt 0:00:04]} 8. dxe5 {[%emt 0:00:08]} dxe5 {[%emt 0:00:06]} 9. Bg5 {[%emt 0:00:07]} Qxd1 {[%emt 0:00:09]} 10. Rfxd1 {[%emt 0:00:05]} Bg4 {[%emt 0:00:09] The old main line.} 11. h3 {[%emt 0:00:18]} Bxf3 {[%emt 0:00:12] E97: King's Indian: Classical Main Line (6...e5 7 0-0 Nc6): 8 Be3 and 8 d5 Ne7, not 9 Ne1.} 12. Bxf3 {[%emt 0:00:04]} Nd4 {[%emt 0:00:17]} 13. Nd5 {[%emt 0:00:03]} Nxd5 {[%emt 0:03:13] White has an edge.} 14. cxd5 {[%emt 0:00:06]} c6 {[%emt 0:02:22]} 15. dxc6 {[%emt 0:00:08]} bxc6 {[%emt 0:00:33]} 16. Rac1 {[%emt 0:00:16]} Rfb8 {[%emt 0:02:06]} 17. Rd2 {[%emt 0:01:10]} a5 {[%emt 0:01:10]} 18. Be3 {[%emt 0:01:17]} Ra6 {[%emt 0:01:39] [#]} 19. Bd1 $146 {[%emt 0:01:50]} ({Predecessor:} 19. Rc5 a4 20. Bd1 a3 21. b3 Rb5 22. Rc4 c5 23. Rc1 Ra8 24. Be2 Rba5 25. Bc4 {1-0 (37) Horvath,D (2329)-Guthrie,D (2181) Caleta 2018}) 19... Rab6 {[%emt 0:07:15]} 20. b3 {[%emt 0:01:24]} h5 {[%emt 0:01:48]} 21. h4 {[%emt 0:02:07]} Ra6 {[%emt 0:07:29]} (21... Rd8 $14) 22. Rc5 {[%emt 0:05:24]} ({White should try} 22. Bxd4 $16 exd4 23. Be2) 22... Rb5 $14 {[%emt 0:04:22]} 23. Bxd4 {[%emt 0:02:12]} exd4 {[%emt 0:00:09]} 24. Rxb5 {[%emt 0:00:01] White is more active.} cxb5 {[%emt 0:00:10][%mdl 4096] Endgame KRB-KRB} 25. Be2 {[%emt 0:00:02]} Re6 {[%emt 0:07:37]} 26. f3 {[%emt 0:01:14]} Rc6 {[%emt 0:06:06]} 27. Bxb5 {[%emt 0:00:14]} Rc3 {[%emt 0:00:33]} 28. Bd3 {[%emt 0:04:11]} Bh6 {[%emt 0:02:36]} 29. Rd1 {[%emt 0:00:06]} Be3+ {[%emt 0:00:58]} 30. Kf1 {[%emt 0:00:06]} Bf4 {[%emt 0:03:45]} 31. Kf2 {[%emt 0:00:55] Against Bg3+} Be3+ {[%emt 0:00:17]} 32. Ke2 {[%emt 0:00:07]} Bf4 {[%emt 0:00:52]} 33. Kf2 {[%emt 0:02:51]} Be3+ {[%emt 0:00:10]} 34. Kg3 $1 {[%emt 0:00:03]} Kg7 {[%emt 0:05:18]} 35. f4 {[%emt 0:01:04]} a4 {[%emt 0:00:39]} 36. bxa4 {[%emt 0:01:27] aiming for a5.} (36. b4 $5 {[%cal Rb4b5]}) 36... Ra3 {[%emt 0:00:11][%csl LRa2,LRa4]} 37. Bc4 {[%emt 0:00:34] [#] Bb3 is the strong threat.} Rc3 {[%emt 0:01:10]} 38. Bd3 {[%emt 0:02:06] Threatens to win with a5.} Ra3 {[%emt 0:00:07][%csl LRa2,LRa4]} 39. Bc4 {[%emt 0:00:15] And now Bb3 would win.} Rc3 {[%emt 0:00:07]} 40. Bd3 {[%emt 0:00:19] Weighted Error Value: White=0.11 (very precise) /Black=0.07 (flawless)} 1/2-1/2